[Event "Titled Tuesday Blitz November 08 Early 2022"]
[White "Tharushi, T H D Niklesha"]
[Black "Prydun, Andriy"]
[WhiteFideId "9918264"]
[BlackFideId "14145898"]
[WhiteElo "1596"]
[BlackElo "2163"]
[Result "0-1"]
[Round "10"]
[TimeControl "180+1"]
[Date "2022.11.09"]
[WhiteClock "0:00:42"]
[BlackClock "0:01:19"]

1. e4 {[%clk 0:03:00]}  c6 {[%clk 0:02:51]} 2. d4 {[%clk 0:03:00]}  d5 {[%clk 0:02:51]} 3. e5 {[%clk 0:02:58]}  Bf5 {[%clk 0:02:50]} 4. Bd3 {[%clk 0:02:55]}  Bxd3 {[%clk 0:02:50]} 5. Qxd3 {[%clk 0:02:56]}  e6 {[%clk 0:02:49]} 6. Nf3 {[%clk 0:02:54]}  Ne7 {[%clk 0:02:46]} 7. Nbd2 {[%clk 0:02:50]}  Nd7 {[%clk 0:02:46]} 8. c3 {[%clk 0:02:50]}  c5 {[%clk 0:02:45]} 9. O-O {[%clk 0:02:44]}  Nc6 {[%clk 0:02:44]} 10. a3 {[%clk 0:02:41]}  Be7 {[%clk 0:02:43]} 11. b4 {[%clk 0:02:39]}  cxb4 {[%clk 0:02:42]} 12. axb4 {[%clk 0:02:39]}  O-O {[%clk 0:02:41]} 13. Nb3 {[%clk 0:02:37]}  b6 {[%clk 0:02:40]} 14. Be3 {[%clk 0:02:33]}  Qc8 {[%clk 0:02:38]} 15. Bg5 {[%clk 0:02:27]}  Qd8 {[%clk 0:02:37]} 16. Be3 {[%clk 0:02:15]}  Qc8 {[%clk 0:02:37]} 17. Qa6 {[%clk 0:02:09]}  Qc7 {[%clk 0:02:36]} 18. Qd3 {[%clk 0:02:00]}  Ncb8 {[%clk 0:02:35]} 19. Ra2 {[%clk 0:01:54]}  Rc8 {[%clk 0:02:33]} 20. Bd2 {[%clk 0:01:49]}  Qc4 {[%clk 0:02:32]} 21. Nc1 {[%clk 0:01:43]}  a5 {[%clk 0:02:30]} 22. bxa5 {[%clk 0:01:40]}  bxa5 {[%clk 0:02:30]} 23. Qxc4 {[%clk 0:01:38]}  Rxc4 {[%clk 0:02:28]} 24. Nb3 {[%clk 0:01:35]}  a4 {[%clk 0:02:27]} 25. Rfa1 {[%clk 0:01:35]}  Nc6 {[%clk 0:02:22]} 26. Nc1 {[%clk 0:01:32]}  Nb6 {[%clk 0:02:20]} 27. Nd3 {[%clk 0:01:32]}  a3 {[%clk 0:02:19]} 28. Nb4 {[%clk 0:01:25]}  Nxb4 {[%clk 0:01:46]} 29. cxb4 {[%clk 0:01:25]}  Bxb4 {[%clk 0:01:46]} 30. Bxb4 {[%clk 0:01:23]}  Rxb4 {[%clk 0:01:47]} 31. h3 {[%clk 0:01:22]}  Nc4 {[%clk 0:01:47]} 32. Ne1 {[%clk 0:01:19]}  Rab8 {[%clk 0:01:44]} 33. Nc2 {[%clk 0:01:17]}  Rb2 {[%clk 0:01:43]} 34. Nxa3 {[%clk 0:01:16]}  Rxa2 {[%clk 0:01:41]} 35. Rxa2 {[%clk 0:01:15]}  Ra8 {[%clk 0:01:41]} 36. Nxc4 {[%clk 0:01:07]}  Rxa2 {[%clk 0:01:41]} 37. Nd6 {[%clk 0:01:03]}  Ra4 {[%clk 0:01:38]} 38. Nb5 {[%clk 0:00:58]}  Rb4 {[%clk 0:01:37]} 39. Na7 {[%clk 0:00:56]}  Rxd4 {[%clk 0:01:37]} 40. g3 {[%clk 0:00:56]}  Rc4 {[%clk 0:01:34]} 41. f4 {[%clk 0:00:55]}  Rc5 {[%clk 0:01:33]} 42. Kf2 {[%clk 0:00:55]}  Kf8 {[%clk 0:01:33]} 43. Ke3 {[%clk 0:00:55]}  Ke8 {[%clk 0:01:33]} 44. Kd4 {[%clk 0:00:55]}  Rc4+ {[%clk 0:01:32]} 45. Kd3 {[%clk 0:00:55]}  Rb4 {[%clk 0:01:27]} 46. Nc6 {[%clk 0:00:55]}  Rb3+ {[%clk 0:01:26]} 47. Kd4 {[%clk 0:00:53]}  Rxg3 {[%clk 0:01:27]} 48. Kc5 {[%clk 0:00:53]}  Rxh3 {[%clk 0:01:26]} 49. Kd6 {[%clk 0:00:53]}  Rf3 {[%clk 0:01:26]} 50. Nb4 {[%clk 0:00:43]}  Rxf4 {[%clk 0:01:25]} 51. Na6 {[%clk 0:00:43]}  h5 {[%clk 0:01:22]} 52. Nc7+ {[%clk 0:00:44]}  Kf8 {[%clk 0:01:22]} 53. Nb5 {[%clk 0:00:42]}  h4 {[%clk 0:01:22]} 54. Nc3 {[%clk 0:00:42]}  h3 {[%clk 0:01:21]} 55. Ne2 {[%clk 0:00:43]}  Rg4 {[%clk 0:01:21]} 56. Kd7 {[%clk 0:00:42]}  h2 {[%clk 0:01:20]} 57. Nd4 {[%clk 0:00:41]}  Rxd4 {[%clk 0:01:19]} 58. Kd8 {[%clk 0:00:41]}  Rc4 {[%clk 0:01:18]} 59. Kd7 {[%clk 0:00:41]}  h1=Q {[%clk 0:01:18]} 60. Kd6 {[%clk 0:00:42]}  Qb1 {[%clk 0:01:18]} 61. Kd7 {[%clk 0:00:42]}  Qb7+ {[%clk 0:01:18]} 62. Kd8 {[%clk 0:00:42]}  Qc8# {[%clk 0:01:19]} 0-1


[Site "https://www.chess.com"]

[Event "Titled Tuesday Blitz November 08 Early 2022"]
[White "Troltenier, Dirk"]
[Black "Estrada Nieto, Julian"]
[WhiteFideId "4606400"]
[BlackFideId "5101018"]
[WhiteElo "2330"]
[BlackElo "2221"]
[Result "0-1"]
[Round "10"]
[TimeControl "180+1"]
[Date "2022.11.09"]
[WhiteClock "0:00:03"]
[BlackClock "0:00:40"]

1. e4 {[%clk 0:03:00]}  e5 {[%clk 0:02:59]} 2. Nf3 {[%clk 0:02:59]}  Nc6 {[%clk 0:02:54]} 3. Bc4 {[%clk 0:02:57]}  Bc5 {[%clk 0:02:53]} 4. O-O {[%clk 0:02:48]}  Nf6 {[%clk 0:02:53]} 5. Nc3 {[%clk 0:02:48]}  d6 {[%clk 0:02:53]} 6. d3 {[%clk 0:02:49]}  Na5 {[%clk 0:02:50]} 7. Bb3 {[%clk 0:02:27]}  Nxb3 {[%clk 0:02:45]} 8. axb3 {[%clk 0:02:28]}  a6 {[%clk 0:02:41]} 9. Be3 {[%clk 0:02:23]}  Bxe3 {[%clk 0:02:40]} 10. fxe3 {[%clk 0:02:24]}  O-O {[%clk 0:02:40]} 11. Qe1 {[%clk 0:02:23]}  c6 {[%clk 0:02:22]} 12. Nh4 {[%clk 0:02:19]}  Be6 {[%clk 0:02:18]} 13. Qg3 {[%clk 0:02:10]}  Nd7 {[%clk 0:02:17]} 14. Rf2 {[%clk 0:01:48]}  h6 {[%clk 0:02:13]} 15. Raf1 {[%clk 0:01:45]}  Qg5 {[%clk 0:02:12]} 16. Nf5 {[%clk 0:01:41]}  Bxf5 {[%clk 0:02:06]} 17. Qxg5 {[%clk 0:01:38]}  hxg5 {[%clk 0:02:05]} 18. Rxf5 {[%clk 0:01:35]}  f6 {[%clk 0:02:05]} 19. g3 {[%clk 0:01:24]}  Kh7 {[%clk 0:02:03]} 20. Kg2 {[%clk 0:01:17]}  Kg6 {[%clk 0:02:03]} 21. R5f2 {[%clk 0:01:11]}  Rh8 {[%clk 0:02:02]} 22. Rd2 {[%clk 0:00:57]}  Rh7 {[%clk 0:02:00]} 23. Rh1 {[%clk 0:00:56]}  Nc5 {[%clk 0:01:46]} 24. d4 {[%clk 0:00:52]}  exd4 {[%clk 0:01:33]} 25. exd4 {[%clk 0:00:50]}  Ne6 {[%clk 0:01:28]} 26. Re1 {[%clk 0:00:45]}  g4 {[%clk 0:01:26]} 27. Ne2 {[%clk 0:00:40]}  Ng5 {[%clk 0:01:22]} 28. Ng1 {[%clk 0:00:22]}  Re8 {[%clk 0:01:21]} 29. Rde2 {[%clk 0:00:20]}  Rhh8 {[%clk 0:01:14]} 30. c3 {[%clk 0:00:16]}  Re7 {[%clk 0:01:13]} 31. Re3 {[%clk 0:00:15]}  Rhe8 {[%clk 0:01:13]} 32. h4 {[%clk 0:00:12]}  Nxe4 {[%clk 0:01:02]} 33. Ne2 {[%clk 0:00:12]}  d5 {[%clk 0:01:00]} 34. Nf4+ {[%clk 0:00:12]}  Kf7 {[%clk 0:01:01]} 35. c4 {[%clk 0:00:12]}  dxc4 {[%clk 0:00:47]} 36. bxc4 {[%clk 0:00:12]}  Nd2 {[%clk 0:00:47]} 37. Rxe7+ {[%clk 0:00:10]}  Rxe7 {[%clk 0:00:48]} 38. Rxe7+ {[%clk 0:00:10]}  Kxe7 {[%clk 0:00:48]} 39. c5 {[%clk 0:00:06]}  Nc4 {[%clk 0:00:45]} 40. Kf2 {[%clk 0:00:04]}  Nxb2 {[%clk 0:00:43]} 41. Ke3 {[%clk 0:00:04]}  Na4 {[%clk 0:00:42]} 42. Kd2 {[%clk 0:00:04]}  b6 {[%clk 0:00:42]} 43. cxb6 {[%clk 0:00:02]}  Nxb6 {[%clk 0:00:42]} 44. Kc3 {[%clk 0:00:03]}  Nd5+ {[%clk 0:00:40]} 0-1


[Site "https://www.chess.com"]

[Event "Titled Tuesday Blitz November 08 Early 2022"]
[White "Urazayev, Arystanbek"]
[Black "Aradhya, Garg"]
[WhiteFideId "13709810"]
[BlackFideId "25006746"]
[WhiteElo "2441"]
[BlackElo "2223"]
[Result "0-1"]
[Round "10"]
[TimeControl "180+1"]
[Date "2022.11.08"]
[WhiteClock "0:00:52"]
[BlackClock "0:00:36"]

1. d4 {[%clk 0:03:00]}  d5 {[%clk 0:02:59]} 2. c4 {[%clk 0:03:01]}  c6 {[%clk 0:02:59]} 3. Nf3 {[%clk 0:03:02]}  Nf6 {[%clk 0:02:59]} 4. e3 {[%clk 0:03:02]}  Bf5 {[%clk 0:02:58]} 5. Nc3 {[%clk 0:03:02]}  e6 {[%clk 0:02:58]} 6. Nh4 {[%clk 0:03:03]}  Be4 {[%clk 0:02:58]} 7. f3 {[%clk 0:03:03]}  Bg6 {[%clk 0:02:59]} 8. Qb3 {[%clk 0:03:04]}  Qc7 {[%clk 0:02:57]} 9. Bd2 {[%clk 0:03:04]}  Nbd7 {[%clk 0:02:57]} 10. Nxg6 {[%clk 0:03:04]}  hxg6 {[%clk 0:02:57]} 11. O-O-O {[%clk 0:03:05]}  a5 {[%clk 0:02:54]} 12. Kb1 {[%clk 0:03:02]}  a4 {[%clk 0:02:53]} 13. Qc2 {[%clk 0:03:02]}  a3 {[%clk 0:02:52]} 14. b3 {[%clk 0:03:02]}  Rxh2 {[%clk 0:02:49]} 15. Rxh2 {[%clk 0:03:00]}  Qxh2 {[%clk 0:02:50]} 16. e4 {[%clk 0:03:00]}  dxe4 {[%clk 0:02:46]} 17. fxe4 {[%clk 0:03:01]}  e5 {[%clk 0:02:46]} 18. d5 {[%clk 0:02:53]}  Qh4 {[%clk 0:02:36]} 19. Be2 {[%clk 0:02:31]}  Bb4 {[%clk 0:02:28]} 20. Bf3 {[%clk 0:02:29]}  g5 {[%clk 0:02:25]} 21. Qc1 {[%clk 0:02:25]}  Bxc3 {[%clk 0:02:19]} 22. Bxg5 {[%clk 0:02:17]}  Qg3 {[%clk 0:02:13]} 23. Bxf6 {[%clk 0:02:17]}  Nxf6 {[%clk 0:02:06]} 24. Qxc3 {[%clk 0:02:18]}  Nxe4 {[%clk 0:02:07]} 25. Qe1 {[%clk 0:02:18]}  Qxe1 {[%clk 0:02:03]} 26. Rxe1 {[%clk 0:02:19]}  Nd2+ {[%clk 0:02:04]} 27. Kc2 {[%clk 0:02:17]}  Nxf3 {[%clk 0:02:04]} 28. gxf3 {[%clk 0:02:18]}  f6 {[%clk 0:02:02]} 29. dxc6 {[%clk 0:02:19]}  bxc6 {[%clk 0:01:49]} 30. f4 {[%clk 0:02:19]}  Kf7 {[%clk 0:01:48]} 31. fxe5 {[%clk 0:02:20]}  Re8 {[%clk 0:01:48]} 32. b4 {[%clk 0:01:53]}  Rxe5 {[%clk 0:01:46]} 33. Rb1 {[%clk 0:01:53]}  g5 {[%clk 0:01:41]} 34. b5 {[%clk 0:01:54]}  cxb5 {[%clk 0:01:39]} 35. cxb5 {[%clk 0:01:54]}  Rc5+ {[%clk 0:01:23]} 36. Kd3 {[%clk 0:01:55]}  Ke6 {[%clk 0:01:19]} 37. b6 {[%clk 0:01:54]}  Rc8 {[%clk 0:01:19]} 38. Rb3 {[%clk 0:01:48]}  Rb8 {[%clk 0:01:18]} 39. Kc4 {[%clk 0:01:47]}  f5 {[%clk 0:01:13]} 40. Kc5 {[%clk 0:01:44]}  f4 {[%clk 0:01:13]} 41. Rxa3 {[%clk 0:01:45]}  g4 {[%clk 0:01:13]} 42. Ra4 {[%clk 0:01:40]}  Kf5 {[%clk 0:01:04]} 43. Ra7 {[%clk 0:01:40]}  f3 {[%clk 0:00:57]} 44. Rf7+ {[%clk 0:01:30]}  Ke4 {[%clk 0:00:48]} 45. Rg7 {[%clk 0:01:30]}  f2 {[%clk 0:00:42]} 46. Re7+ {[%clk 0:00:55]}  Kd3 {[%clk 0:00:38]} 47. Rf7 {[%clk 0:00:54]}  g3 {[%clk 0:00:38]} 48. b7 {[%clk 0:00:52]}  g2 {[%clk 0:00:36]} 0-1


[Site "https://www.chess.com"]

[Event "Titled Tuesday Blitz November 08 Early 2022"]
[White "Volkov, Maksim"]
[Black "Orozbaev, Eldiar"]
[WhiteFideId "54123070"]
[BlackFideId "13802240"]
[WhiteElo "2257"]
[BlackElo "2244"]
[Result "0-1"]
[Round "10"]
[TimeControl "180+1"]
[Date "2022.11.08"]
[WhiteClock "0:00:16"]
[BlackClock "0:00:40"]

1. d4 {[%clk 0:03:00]}  Nf6 {[%clk 0:02:49]} 2. c4 {[%clk 0:03:00]}  c5 {[%clk 0:02:48]} 3. d5 {[%clk 0:03:00]}  b5 {[%clk 0:02:49]} 4. cxb5 {[%clk 0:03:01]}  a6 {[%clk 0:02:48]} 5. bxa6 {[%clk 0:03:02]}  Bxa6 {[%clk 0:02:49]} 6. Nc3 {[%clk 0:03:01]}  g6 {[%clk 0:02:48]} 7. e4 {[%clk 0:03:02]}  Bxf1 {[%clk 0:02:48]} 8. Kxf1 {[%clk 0:03:03]}  d6 {[%clk 0:02:49]} 9. Nf3 {[%clk 0:03:03]}  Bg7 {[%clk 0:02:49]} 10. g3 {[%clk 0:03:03]}  O-O {[%clk 0:02:50]} 11. Kg2 {[%clk 0:03:04]}  Qb6 {[%clk 0:02:50]} 12. a4 {[%clk 0:03:04]}  Na6 {[%clk 0:02:50]} 13. Re1 {[%clk 0:03:00]}  Nd7 {[%clk 0:02:49]} 14. Ra3 {[%clk 0:02:53]}  Rfb8 {[%clk 0:02:48]} 15. Qe2 {[%clk 0:02:48]}  Nc7 {[%clk 0:02:46]} 16. Nd2 {[%clk 0:02:42]}  Qa6 {[%clk 0:02:41]} 17. Nc4 {[%clk 0:02:29]}  Rb4 {[%clk 0:02:35]} 18. Ne3 {[%clk 0:02:25]}  Qxe2 {[%clk 0:02:31]} 19. Rxe2 {[%clk 0:02:25]}  Bxc3 {[%clk 0:02:29]} 20. bxc3 {[%clk 0:02:22]}  Rbxa4 {[%clk 0:02:29]} 21. Rea2 {[%clk 0:02:17]}  Nb6 {[%clk 0:02:25]} 22. c4 {[%clk 0:01:44]}  Kf8 {[%clk 0:02:04]} 23. Kf3 {[%clk 0:01:32]}  Ke8 {[%clk 0:02:04]} 24. Ke2 {[%clk 0:01:32]}  Kd7 {[%clk 0:02:04]} 25. Kd3 {[%clk 0:01:32]}  Kc8 {[%clk 0:01:54]} 26. f4 {[%clk 0:01:32]}  Kb7 {[%clk 0:01:52]} 27. g4 {[%clk 0:01:27]}  R8a5 {[%clk 0:01:43]} 28. Rxa4 {[%clk 0:01:19]}  Nxa4 {[%clk 0:01:41]} 29. g5 {[%clk 0:01:09]}  Na6 {[%clk 0:01:30]} 30. Ra3 {[%clk 0:00:53]}  Nb4+ {[%clk 0:01:29]} 31. Ke2 {[%clk 0:00:54]}  Ka6 {[%clk 0:01:26]} 32. e5 {[%clk 0:00:46]}  Nb6 {[%clk 0:01:18]} 33. Rxa5+ {[%clk 0:00:32]}  Kxa5 {[%clk 0:01:17]} 34. Bb2 {[%clk 0:00:32]}  Ka4 {[%clk 0:01:02]} 35. e6 {[%clk 0:00:27]}  fxe6 {[%clk 0:01:01]} 36. dxe6 {[%clk 0:00:28]}  Kb3 {[%clk 0:00:58]} 37. Bf6 {[%clk 0:00:18]}  Nxc4 {[%clk 0:00:43]} 38. Bxe7 {[%clk 0:00:15]}  Nxe3 {[%clk 0:00:41]} 39. Kxe3 {[%clk 0:00:16]}  Nd5+ {[%clk 0:00:40]} 0-1


[Site "https://www.chess.com"]

[Event "Titled Tuesday Blitz November 08 Early 2022"]
[White "Wagner, Dennis"]
[Black "Ter-Sahakyan, Samvel"]
[WhiteFideId "24650684"]
[BlackFideId "13302531"]
[WhiteElo "2470"]
[BlackElo "2584"]
[Result "0-1"]
[Round "10"]
[TimeControl "180+1"]
[Date "2022.11.08"]
[WhiteClock "0:00:03"]
[BlackClock "0:00:07"]

1. e4 {[%clk 0:03:00]}  c6 {[%clk 0:02:59]} 2. d4 {[%clk 0:03:00]}  d5 {[%clk 0:03:00]} 3. e5 {[%clk 0:03:01]}  Bf5 {[%clk 0:02:59]} 4. Nf3 {[%clk 0:03:02]}  e6 {[%clk 0:03:00]} 5. Be2 {[%clk 0:03:03]}  Nd7 {[%clk 0:03:00]} 6. c3 {[%clk 0:03:01]}  a5 {[%clk 0:02:58]} 7. a4 {[%clk 0:03:00]}  f6 {[%clk 0:02:55]} 8. O-O {[%clk 0:02:24]}  fxe5 {[%clk 0:02:55]} 9. dxe5 {[%clk 0:02:22]}  Bc5 {[%clk 0:02:54]} 10. Nd4 {[%clk 0:02:20]}  Ne7 {[%clk 0:02:48]} 11. f4 {[%clk 0:02:12]}  O-O {[%clk 0:02:34]} 12. Kh1 {[%clk 0:02:10]}  Bxd4 {[%clk 0:02:12]} 13. cxd4 {[%clk 0:02:09]}  c5 {[%clk 0:02:07]} 14. Nc3 {[%clk 0:02:04]}  cxd4 {[%clk 0:02:00]} 15. Nb5 {[%clk 0:01:49]}  d3 {[%clk 0:01:56]} 16. Bxd3 {[%clk 0:01:49]}  Bxd3 {[%clk 0:01:53]} 17. Qxd3 {[%clk 0:01:50]}  Nc5 {[%clk 0:01:53]} 18. Qh3 {[%clk 0:01:35]}  Nf5 {[%clk 0:01:47]} 19. Be3 {[%clk 0:01:35]}  Ne4 {[%clk 0:01:44]} 20. Rac1 {[%clk 0:01:11]}  Rc8 {[%clk 0:01:44]} 21. Bg1 {[%clk 0:00:46]}  h6 {[%clk 0:01:14]} 22. Qg4 {[%clk 0:00:40]}  Qe7 {[%clk 0:01:10]} 23. Qg6 {[%clk 0:00:38]}  Qh4 {[%clk 0:00:56]} 24. Qxe6+ {[%clk 0:00:31]}  Kh7 {[%clk 0:00:57]} 25. h3 {[%clk 0:00:08]}  Rc2 {[%clk 0:00:56]} 26. Bh2 {[%clk 0:00:03]}  Nfg3+ {[%clk 0:00:31]} 27. Bxg3 {[%clk 0:00:03]}  Nxg3+ {[%clk 0:00:27]} 28. Kh2 {[%clk 0:00:04]}  Nxf1+ {[%clk 0:00:24]} 29. Rxf1 {[%clk 0:00:05]}  Rxf4 {[%clk 0:00:24]} 30. Qxd5 {[%clk 0:00:05]}  Rxf1 {[%clk 0:00:15]} 31. Qd3+ {[%clk 0:00:06]}  Kh8 {[%clk 0:00:15]} 32. Qxf1 {[%clk 0:00:05]}  Rf2 {[%clk 0:00:14]} 33. Qd3 {[%clk 0:00:04]}  Qf4+ {[%clk 0:00:13]} 34. Kg1 {[%clk 0:00:02]}  Rd2 {[%clk 0:00:14]} 35. Qf1 {[%clk 0:00:01]}  Qxe5 {[%clk 0:00:12]} 36. Qf8+ {[%clk 0:00:01]}  Kh7 {[%clk 0:00:12]} 37. Qf3 {[%clk 0:00:02]}  Rxb2 {[%clk 0:00:10]} 38. Qd3+ {[%clk 0:00:01]}  Kg8 {[%clk 0:00:10]} 39. Nd4 {[%clk 0:00:02]}  Rb4 {[%clk 0:00:08]} 40. Nf3 {[%clk 0:00:02]}  Qc5+ {[%clk 0:00:08]} 41. Kh2 {[%clk 0:00:01]}  Qe7 {[%clk 0:00:07]} 42. Qd5+ {[%clk 0:00:01]}  Kh8 {[%clk 0:00:07]} 43. Ne5 {[%clk 0:00:02]}  Qf6 {[%clk 0:00:07]} 44. Nf7+ {[%clk 0:00:02]}  Kh7 {[%clk 0:00:07]} 45. Ne5 {[%clk 0:00:03]}  Qf4+ {[%clk 0:00:07]} 46. Kg1 {[%clk 0:00:03]}  Rb1+ {[%clk 0:00:07]} 0-1


[Site "https://www.chess.com"]

[Event "Titled Tuesday Blitz November 08 Early 2022"]
[White "Yurovskykh, Oleksandr"]
[Black "Melikhov, Evgeny V."]
[WhiteFideId "14134020"]
[BlackFideId "4122046"]
[WhiteElo "2265"]
[BlackElo "2169"]
[Result "1-0"]
[Round "10"]
[TimeControl "180+1"]
[Date "2022.11.09"]
[WhiteClock "0:01:14"]
[BlackClock "0:00:09"]

1. d4 {[%clk 0:03:00]}  Nf6 {[%clk 0:02:58]} 2. Nf3 {[%clk 0:02:57]}  d5 {[%clk 0:02:57]} 3. Bf4 {[%clk 0:02:56]}  c5 {[%clk 0:02:57]} 4. e3 {[%clk 0:02:56]}  Nc6 {[%clk 0:02:57]} 5. c3 {[%clk 0:02:55]}  Qb6 {[%clk 0:02:56]} 6. Qc2 {[%clk 0:02:54]}  Bf5 {[%clk 0:02:51]} 7. dxc5 {[%clk 0:02:53]}  Bxc2 {[%clk 0:02:47]} 8. cxb6 {[%clk 0:02:53]}  axb6 {[%clk 0:02:47]} 9. Na3 {[%clk 0:02:53]}  Bg6 {[%clk 0:02:28]} 10. Nb5 {[%clk 0:02:52]}  Ra5 {[%clk 0:02:25]} 11. Be2 {[%clk 0:02:31]}  Kd7 {[%clk 0:01:49]} 12. O-O {[%clk 0:02:24]}  Nh5 {[%clk 0:01:42]} 13. Bg5 {[%clk 0:02:11]}  h6 {[%clk 0:01:39]} 14. Bh4 {[%clk 0:02:10]}  e6 {[%clk 0:01:39]} 15. Rfd1 {[%clk 0:02:08]}  Kc8 {[%clk 0:01:24]} 16. a3 {[%clk 0:01:57]}  Bc2 {[%clk 0:01:04]} 17. Rd2 {[%clk 0:01:57]}  Be4 {[%clk 0:00:56]} 18. c4 {[%clk 0:01:48]}  g5 {[%clk 0:00:55]} 19. Bg3 {[%clk 0:01:47]}  Nxg3 {[%clk 0:00:55]} 20. hxg3 {[%clk 0:01:47]}  Be7 {[%clk 0:00:31]} 21. cxd5 {[%clk 0:01:42]}  exd5 {[%clk 0:00:30]} 22. Nc3 {[%clk 0:01:41]}  Rd8 {[%clk 0:00:24]} 23. Rad1 {[%clk 0:01:39]}  Bf6 {[%clk 0:00:14]} 24. Nd4 {[%clk 0:01:36]}  Nxd4 {[%clk 0:00:13]} 25. exd4 {[%clk 0:01:36]}  Kd7 {[%clk 0:00:12]} 26. Bf3 {[%clk 0:01:24]}  Bxf3 {[%clk 0:00:12]} 27. gxf3 {[%clk 0:01:25]}  Kd6 {[%clk 0:00:12]} 28. Kf1 {[%clk 0:01:23]}  Re8 {[%clk 0:00:12]} 29. Re1 {[%clk 0:01:20]}  Raa8 {[%clk 0:00:12]} 30. g4 {[%clk 0:01:12]}  Rxe1+ {[%clk 0:00:11]} 31. Kxe1 {[%clk 0:01:13]}  Re8+ {[%clk 0:00:11]} 32. Kd1 {[%clk 0:01:14]}  Rh8 {[%clk 0:00:10]} 33. Kc2 {[%clk 0:01:13]}  h5 {[%clk 0:00:10]} 34. gxh5 {[%clk 0:01:14]}  Rxh5 {[%clk 0:00:10]} 35. Kd3 {[%clk 0:01:13]}  Rh3 {[%clk 0:00:10]} 36. Ke2 {[%clk 0:01:13]}  Bg7 {[%clk 0:00:07]} 37. Nb5+ {[%clk 0:01:12]}  Kc6 {[%clk 0:00:07]} 38. a4 {[%clk 0:01:12]}  f5 {[%clk 0:00:06]} 39. Rc2+ {[%clk 0:01:12]}  Kd7 {[%clk 0:00:05]} 40. Rc7+ {[%clk 0:01:13]}  Ke6 {[%clk 0:00:06]} 41. Rxg7 {[%clk 0:01:14]}  g4 {[%clk 0:00:06]} 42. fxg4 {[%clk 0:01:14]}  Rb3 {[%clk 0:00:07]} 43. Rg6+ {[%clk 0:01:12]}  Kf7 {[%clk 0:00:07]} 44. gxf5 {[%clk 0:01:12]}  Rxb2+ {[%clk 0:00:08]} 45. Ke3 {[%clk 0:01:12]}  Rb3+ {[%clk 0:00:08]} 46. Kf4 {[%clk 0:01:12]}  Rb4 {[%clk 0:00:08]} 47. Rxb6 {[%clk 0:01:12]}  Rxa4 {[%clk 0:00:09]} 48. Rxb7+ {[%clk 0:01:13]}  Kf6 {[%clk 0:00:10]} 49. Rb6+ {[%clk 0:01:13]}  Kf7 {[%clk 0:00:09]} 50. Ke5 {[%clk 0:01:14]} 1-0


[Site "https://www.chess.com"]

[Event "Titled Tuesday Blitz November 08 Early 2022"]
[White "Zaksaite, Salomeja"]
[Black "Johnson, Ben"]
[WhiteFideId "12801496"]
[BlackFideId "2010917"]
[WhiteElo "2079"]
[BlackElo "2135"]
[Result "1-0"]
[Round "10"]
[TimeControl "180+1"]
[Date "2022.11.09"]
[WhiteClock "0:00:06"]
[BlackClock "0:00:02"]

1. e4 {[%clk 0:02:56]}  c5 {[%clk 0:03:00]} 2. Nf3 {[%clk 0:02:44]}  Nc6 {[%clk 0:03:00]} 3. Bb5 {[%clk 0:02:39]}  g6 {[%clk 0:02:59]} 4. O-O {[%clk 0:02:39]}  Bg7 {[%clk 0:02:59]} 5. Bxc6 {[%clk 0:02:36]}  dxc6 {[%clk 0:02:58]} 6. d3 {[%clk 0:02:35]}  Bg4 {[%clk 0:02:53]} 7. h3 {[%clk 0:02:34]}  Bxf3 {[%clk 0:02:52]} 8. Qxf3 {[%clk 0:02:35]}  e5 {[%clk 0:02:49]} 9. a3 {[%clk 0:02:32]}  Qe7 {[%clk 0:02:42]} 10. b4 {[%clk 0:02:32]}  cxb4 {[%clk 0:02:41]} 11. axb4 {[%clk 0:02:32]}  Nf6 {[%clk 0:02:32]} 12. Nd2 {[%clk 0:02:24]}  O-O {[%clk 0:02:29]} 13. Nc4 {[%clk 0:02:16]}  h6 {[%clk 0:01:55]} 14. Bd2 {[%clk 0:01:55]}  Nd7 {[%clk 0:01:50]} 15. Ra5 {[%clk 0:01:46]}  Nb6 {[%clk 0:01:39]} 16. Rfa1 {[%clk 0:01:39]}  Nxc4 {[%clk 0:01:36]} 17. dxc4 {[%clk 0:01:40]}  Rad8 {[%clk 0:01:34]} 18. Be3 {[%clk 0:01:30]}  Qxb4 {[%clk 0:01:26]} 19. Bc5 {[%clk 0:01:28]}  Qxc4 {[%clk 0:01:22]} 20. Bxf8 {[%clk 0:01:27]}  Bxf8 {[%clk 0:01:20]} 21. Rxa7 {[%clk 0:01:24]}  Qb5 {[%clk 0:01:04]} 22. c4 {[%clk 0:00:27]}  Qb6 {[%clk 0:00:59]} 23. Ra8 {[%clk 0:00:24]}  Rxa8 {[%clk 0:00:57]} 24. Rxa8 {[%clk 0:00:24]}  Kg7 {[%clk 0:00:58]} 25. Kh2 {[%clk 0:00:17]}  Qd4 {[%clk 0:00:54]} 26. Rb8 {[%clk 0:00:11]}  Qd7 {[%clk 0:00:49]} 27. Qc3 {[%clk 0:00:09]}  Qc7 {[%clk 0:00:48]} 28. Re8 {[%clk 0:00:07]}  Bc5 {[%clk 0:00:45]} 29. g3 {[%clk 0:00:03]}  Bxf2 {[%clk 0:00:39]} 30. Qxe5+ {[%clk 0:00:03]}  Qxe5 {[%clk 0:00:38]} 31. Rxe5 {[%clk 0:00:04]}  Kf6 {[%clk 0:00:34]} 32. Re8 {[%clk 0:00:03]}  h5 {[%clk 0:00:26]} 33. Kg2 {[%clk 0:00:03]}  Bd4 {[%clk 0:00:18]} 34. Rb8 {[%clk 0:00:02]}  b6 {[%clk 0:00:17]} 35. Rc8 {[%clk 0:00:03]}  Ke5 {[%clk 0:00:11]} 36. Kf3 {[%clk 0:00:02]}  Kd6 {[%clk 0:00:12]} 37. Rf8 {[%clk 0:00:02]}  f6 {[%clk 0:00:12]} 38. Rf7 {[%clk 0:00:02]}  g5 {[%clk 0:00:11]} 39. Rh7 {[%clk 0:00:02]}  b5 {[%clk 0:00:12]} 40. cxb5 {[%clk 0:00:02]}  cxb5 {[%clk 0:00:13]} 41. Rxh5 {[%clk 0:00:02]}  b4 {[%clk 0:00:13]} 42. Rh7 {[%clk 0:00:02]}  Kc6 {[%clk 0:00:11]} 43. Rh8 {[%clk 0:00:02]}  b3 {[%clk 0:00:11]} 44. Rb8 {[%clk 0:00:02]}  Bb6 {[%clk 0:00:11]} 45. Rc8+ {[%clk 0:00:01]}  Kb5 {[%clk 0:00:12]} 46. Rc1 {[%clk 0:00:01]}  Kb4 {[%clk 0:00:13]} 47. Rb1 {[%clk 0:00:01]}  Bd4 {[%clk 0:00:12]} 48. h4 {[%clk 0:00:01]}  gxh4 {[%clk 0:00:12]} 49. gxh4 {[%clk 0:00:02]}  b2 {[%clk 0:00:12]} 50. h5 {[%clk 0:00:02]}  Kc5 {[%clk 0:00:12]} 51. h6 {[%clk 0:00:01]}  Kc4 {[%clk 0:00:09]} 52. Kg4 {[%clk 0:00:02]}  Kc3 {[%clk 0:00:09]} 53. Kf5 {[%clk 0:00:02]}  Kc2 {[%clk 0:00:02]} 54. Rxb2+ {[%clk 0:00:03]}  Kxb2 {[%clk 0:00:03]} 55. h7 {[%clk 0:00:04]}  Kc3 {[%clk 0:00:04]} 56. h8=Q {[%clk 0:00:04]}  Kd3 {[%clk 0:00:04]} 57. Qe8 {[%clk 0:00:04]}  Kc4 {[%clk 0:00:05]} 58. Qe6+ {[%clk 0:00:05]}  Kc3 {[%clk 0:00:06]} 59. Qd7 {[%clk 0:00:06]}  Kd3 {[%clk 0:00:06]} 60. Qd5 {[%clk 0:00:07]}  Ke3 {[%clk 0:00:07]} 61. Qe6 {[%clk 0:00:07]}  Bc3 {[%clk 0:00:08]} 62. Qa6 {[%clk 0:00:08]}  Be5 {[%clk 0:00:08]} 63. Qb5 {[%clk 0:00:08]}  Bd4 {[%clk 0:00:07]} 64. Qc4 {[%clk 0:00:08]}  Bb2 {[%clk 0:00:05]} 65. Kg4 {[%clk 0:00:07]}  Be5 {[%clk 0:00:04]} 66. Kf5 {[%clk 0:00:06]}  Kf3 {[%clk 0:00:04]} 67. Qd3+ {[%clk 0:00:06]}  Kf2 {[%clk 0:00:05]} 68. Kg4 {[%clk 0:00:06]}  Ke1 {[%clk 0:00:03]} 69. Kf3 {[%clk 0:00:06]}  Bc3 {[%clk 0:00:02]} 70. Qe2# {[%clk 0:00:06]} 1-0


[Site "https://www.chess.com"]